fUST/lending_fUST_20250709
["ID","MTS","AMOUNT","RATE_DAILY","PERIOD"]
[370460661,1752029443375,-500.0,0.00019397,2]
[370460662,1752029443385,-500.0,0.00019425,2]
[370460663,1752029443395,-500.0,0.00019452,2]
[370460664,1752029443404,-460.0,0.00019452,2]
[370460665,1752029443414,-460.0,0.00019452,2]
[370460666,1752029443423,-469.08364884,0.00019452,2]
[370460667,1752029443433,-460.0,0.00019452,2]
[370460668,1752029443442,-460.0,0.00019452,2]
[370460669,1752029443451,-529.55945267,0.00019452,2]
[370460670,1752029443461,-460.0,0.00019452,2]
[370460671,1752029443470,-460.0,0.00019452,2]
[370460672,1752029443479,-460.0,0.00019452,2]
[370460673,1752029443488,-460.0,0.00019452,2]
[370460674,1752029443498,-460.0,0.00019452,2]
[370460675,1752029443507,-460.0,0.00019452,2]
[370460676,1752029443521,-460.0,0.00019452,2]
[370460677,1752029443531,-460.0,0.00019452,2]
[370460678,1752029443541,-460.0,0.00019452,2]
[370460680,1752029443551,-445.96846333,0.00019452,2]
[370460682,1752029443560,-460.0,0.00019452,2]
[370460684,1752029443570,-433.19690921,0.00019452,2]
[370460685,1752029443581,-466.54875584,0.00019452,2]
[370460686,1752029443591,-460.0,0.00019452,2]
[370460687,1752029443600,-238.51968945,0.00019452,2]
[370460688,1752029443610,-460.0,0.00019452,2]
[370460689,1752029443619,-372.60165243,0.00019452,2]
[370460690,1752029443629,-498.19704911,0.00019452,2]
[370460691,1752029443639,-465.46190348,0.00019452,2]
[370460692,1752029443648,-460.0,0.00019452,2]
[370460693,1752029443658,-460.0,0.00019452,2]
[370460695,1752029443668,-460.0,0.00019452,2]
[370460697,1752029443677,-460.0,0.00019452,2]
[370460698,1752029443687,-460.0,0.00019452,2]
[370460701,1752029443696,-462.04588806,0.00019452,2]
[370460703,1752029443706,-462.35698547,0.00019452,2]
[370460707,1752029443715,-460.0,0.00019452,2]
[370460709,1752029443725,-462.43621757,0.00019452,2]
[370460711,1752029443735,-460.0,0.00019452,2]
[370460713,1752029443745,-460.0,0.00019452,2]
[370460714,1752029443755,-460.0,0.00019452,2]
[370460715,1752029443765,-481.24664277,0.00019452,2]
[370460716,1752029443775,-461.04126708,0.00019452,2]
[370460717,1752029443785,-181.17085751,0.00019452,2]
[370460718,1752029443795,-460.0,0.00019452,2]
[370460719,1752029443805,-460.0,0.00019452,2]
[370460720,1752029443815,-460.0,0.00019452,2]
[370460722,1752029443824,-471.63676369,0.00019452,2]
[370460723,1752029443833,-466.15633934,0.00019452,2]
[370460724,1752029443843,-460.0,0.00019452,2]
[370460725,1752029443854,-460.0,0.00019452,2]
[370460726,1752029443863,-573.72,0.00019452,2]
[370460727,1752029443875,-461.6532991,0.00019452,2]
[370460728,1752029443886,-460.0,0.00019452,2]
[370460729,1752029443896,-460.0,0.00019452,2]
[370460731,1752029443905,-460.0,0.00019452,2]
[370460732,1752029443915,-460.0,0.00019452,2]
[370460733,1752029443925,-460.0,0.00019452,2]
[370460734,1752029443936,-460.0,0.00019452,2]
[370460735,1752029443945,-460.0,0.00019452,2]
[370460736,1752029443955,-463.64334074,0.00019452,2]
[370460737,1752029443965,-463.13094727,0.00019452,2]
[370460738,1752029443975,-483.39,0.00019452,2]
[370460739,1752029443985,-460.0,0.00019452,2]
[370460740,1752029443995,-460.0,0.00019452,2]
[370460741,1752029444005,-460.0,0.00019452,2]
[370460742,1752029444014,-460.0,0.00019452,2]
[370460743,1752029444024,-460.0,0.00019452,2]
[370460744,1752029444034,-460.0,0.00019452,2]
[370460745,1752029444044,-460.0,0.00019452,2]
[370460746,1752029444054,-513.63282378,0.00019452,2]
[370460747,1752029444064,-460.0,0.00019452,2]
[370460748,1752029444212,-462.19557383,0.00019452,2]
[370460749,1752029444222,-462.6850279,0.00019452,2]
[370460750,1752029444232,-442.75767739,0.00019452,2]
[370460751,1752029444242,-460.0,0.00019452,2]
[370460752,1752029444251,-460.0,0.00019452,2]
[370460753,1752029444262,-460.0,0.00019452,2]
[370460754,1752029444273,-463.99822761,0.00019452,2]
[370460755,1752029444284,-460.0,0.00019452,2]
[370460756,1752029444295,-460.0,0.00019452,2]
[370460757,1752029444306,-463.29916755,0.00019452,2]
[370460758,1752029444315,-460.0,0.00019452,2]
[370460759,1752029444326,-460.0,0.00019452,2]
[370460760,1752029444335,-460.0,0.00019452,2]
[370460761,1752029444347,-460.0,0.00019452,2]
[370460762,1752029444356,-460.0,0.00019452,2]
[370460763,1752029444366,-460.0,0.00019452,2]
[370460764,1752029444375,-460.0,0.00019452,2]
[370460765,1752029444386,-460.0,0.00019452,2]
[370460766,1752029444396,-460.0,0.00019452,2]
[370460767,1752029444406,-460.0,0.00019452,2]
[370460768,1752029444415,-504.42964933,0.00019452,2]
[370460769,1752029444425,-460.0,0.00019452,2]
[370460770,1752029444435,-463.82029014,0.00019452,2]
[370460771,1752029444445,-470.02337387,0.00019452,2]
[370460772,1752029444455,-460.0,0.00019452,2]
[370460773,1752029444464,-460.0,0.00019452,2]
[370460774,1752029444474,-460.0,0.00019452,2]
[370460775,1752029444483,-500.0,0.00019452,2]
[370460776,1752029444492,-479.03,0.00019452,2]
[370460777,1752029444502,-460.0,0.00019452,2]
[370460778,1752029444511,-460.0,0.00019452,2]
[370460779,1752029444522,-460.0,0.00019452,2]
[370460780,1752029444532,-460.0,0.00019452,2]
[370460781,1752029444543,-812.99,0.00019452,2]
[370460782,1752029444554,-460.0,0.00019452,2]
[370460783,1752029444564,-3032.81,0.00019452,2]
[370460784,1752029444575,-460.0,0.00019452,2]
[370460785,1752029444586,-460.0024848,0.00019452,2]
[370460786,1752029444595,-460.0,0.00019452,2]
[370460787,1752029444606,-460.0,0.00019452,2]
[370460788,1752029444616,-460.0,0.00019452,2]
[370460789,1752029444626,-460.0,0.00019452,2]
[370460790,1752029444637,-554.52508691,0.00019452,2]
[370460791,1752029444647,-465.41027469,0.00019452,2]
[370460792,1752029444657,-460.0,0.00019452,2]
[370460793,1752029444667,-460.0,0.00019452,2]
[370460794,1752029444677,-460.0,0.00019452,2]
[370460795,1752029444686,-2302.41,0.00019452,2]
[370460796,1752029444696,-460.0,0.00019452,2]
[370460797,1752029444706,-1488.7,0.00019452,2]
[370460798,1752029444715,-460.0,0.00019452,2]
[370460799,1752029444725,-460.0,0.00019452,2]
[370460800,1752029444734,-460.0,0.00019452,2]
[370460801,1752029444744,-460.0,0.00019452,2]
[370460802,1752029444754,-763.27,0.00019452,2]
[370460803,1752029444763,-460.0,0.00019452,2]
[370460804,1752029444773,-460.0,0.00019452,2]
[370460805,1752029444782,-526.62,0.00019452,2]
[370460806,1752029444792,-460.0,0.00019452,2]
[370460807,1752029444801,-460.0,0.00019452,2]
[370460808,1752029444811,-353.62368527,0.00019452,2]
[370460809,1752029444821,-460.0,0.00019452,2]
[370460810,1752029444832,-460.0,0.00019452,2]
[370460811,1752029444843,-460.0,0.00019452,2]
[370460812,1752029444853,-460.0,0.00019452,2]
[370460813,1752029444863,-686.65,0.00019452,2]
[370460814,1752029444873,-460.0,0.00019452,2]
[370460815,1752029444884,-460.0,0.00019452,2]
[370460816,1752029444894,-460.0,0.00019452,2]
[370460817,1752029444903,-460.0,0.00019452,2]
[370460818,1752029444913,-460.0,0.00019452,2]
[370460819,1752029444922,-460.0,0.00019452,2]
[370460820,1752029444932,-460.0,0.00019452,2]
[370460821,1752029444942,-460.0,0.00019452,2]
[370460822,1752029444952,-460.0,0.00019452,2]
[370460823,1752029444961,-460.0,0.00019452,2]
[370460824,1752029444972,-1467.71,0.00019452,2]
[370460825,1752029444981,-460.0,0.00019452,2]
[370460826,1752029445005,-460.0,0.00019452,2]
[370460827,1752029445015,-460.0,0.00019452,2]
[370460828,1752029445026,-460.0,0.00019452,2]
[370460829,1752029445037,-460.0,0.00019452,2]
[370460830,1752029445048,-1539.37,0.00019452,2]
[370460831,1752029445061,-460.0,0.00019452,2]
[370460832,1752029445071,-460.0,0.00019452,2]
[370460833,1752029445082,-460.0,0.00019452,2]
[370460834,1752029445093,-327.71838445,0.00019452,2]
[370460835,1752029445104,-890.53,0.00019452,2]
[370460836,1752029445114,-460.0,0.00019452,2]
[370460837,1752029445125,-2130.94,0.00019452,2]
[370460838,1752029445137,-468.92089986,0.00019452,2]
[370460839,1752029445147,-466.96522979,0.00019452,2]
[370460840,1752029445165,-460.0,0.00019452,2]
[370460841,1752029445175,-460.0,0.00019452,2]
[370460842,1752029445185,-374.05712751,0.00019452,2]
[370460843,1752029445195,-529.48,0.00019452,2]
[370460844,1752029445207,-460.0,0.00019452,2]
[370460845,1752029445217,-460.0,0.00019452,2]
[370460846,1752029445228,-460.0,0.00019452,2]
[370460847,1752029445238,-460.0,0.00019452,2]
[370460848,1752029445248,-460.0,0.00019452,2]
[370460849,1752029445259,-1268.98,0.00019452,2]
[370460850,1752029445269,-460.0,0.00019452,2]
[370460851,1752029445279,-462.46670277,0.00019452,2]
[370460852,1752029445289,-462.04867232,0.00019452,2]
[370460853,1752029445299,-460.0,0.00019452,2]
[370460854,1752029445310,-619.65,0.00019452,2]
[370460855,1752029445320,-460.0,0.00019452,2]
[370460856,1752029445330,-460.0,0.00019452,2]
[370460857,1752029445342,-2512.11,0.00019452,2]
[370460858,1752029445353,-460.0,0.00019452,2]
[370460859,1752029445363,-460.0,0.00019452,2]
[370460860,1752029445373,-508.63616032,0.00019452,2]
[370460861,1752029445384,-682.29,0.00019452,2]
[370460862,1752029445401,-460.0,0.00019452,2]
[370460863,1752029445420,-460.0,0.00019452,2]
[370460864,1752029445437,-460.0,0.00019452,2]
[370460865,1752029445455,-461.77066186,0.00019452,2]
[370460866,1752029445469,-1065.93,0.00019452,2]
[370460867,1752029445483,-844.89,0.00019452,2]
[370460868,1752029445500,-460.0,0.00019452,2]
[370460869,1752029445515,-495.22,0.00019452,2]
[370460870,1752029445531,-460.0,0.00019452,2]
[370460871,1752029445547,-460.0,0.00019452,2]
[370460872,1752029445563,-460.0,0.00019452,2]
[370460873,1752029445577,-460.0,0.00019452,2]
[370460874,1752029445598,-814.16,0.00019452,2]
[370460875,1752029445611,-460.0,0.00019452,2]
[370460876,1752029445631,-460.0,0.00019452,2]
[370460877,1752029445649,-460.0,0.00019452,2]
[370460878,1752029445665,-460.0,0.00019452,2]
[370460879,1752029445681,-460.0,0.00019452,2]
[370460880,1752029445696,-460.0,0.00019452,2]
[370460881,1752029445709,-300.60320184,0.00019452,2]
[370460882,1752029445721,-460.0,0.00019452,2]
[370460883,1752029445734,-460.0,0.00019452,2]
[370460884,1752029445748,-460.0,0.00019452,2]
[370460885,1752029445762,-466.16296597,0.00019452,2]
[370460886,1752029445777,-460.0,0.00019452,2]
[370460887,1752029445792,-584.0551728,0.00019452,2]
[370460888,1752029445807,-772.56,0.00019452,2]
[370460889,1752029445822,-495.07,0.00019452,2]
[370460890,1752029445838,-460.0,0.00019452,2]
[370460891,1752029445852,-460.0,0.00019452,2]
[370460892,1752029445863,-460.0,0.00019452,2]
[370460893,1752029445875,-804.53,0.00019452,2]
[370460894,1752029445887,-460.0,0.00019452,2]
[370460895,1752029445902,-460.0,0.00019452,2]
[370460896,1752029445918,-460.0,0.00019452,2]
[370460897,1752029445933,-470.68905098,0.00019452,2]
[370460898,1752029445945,-508.66,0.00019452,2]
[370460899,1752029445958,-460.0,0.00019452,2]
[370460900,1752029445972,-228.63945414,0.00019452,2]
[370460901,1752029445988,-460.0,0.00019452,2]
[370460902,1752029446002,-460.0,0.00019452,2]
[370460903,1752029446014,-460.0,0.00019452,2]
[370460904,1752029446025,-1018.28,0.00019452,2]
[370460905,1752029446039,-460.0,0.00019452,2]
[370460906,1752029446052,-460.0,0.00019452,2]
[370460907,1752029446066,-296.34266754,0.00019452,2]
[370460908,1752029446081,-460.0,0.00019452,2]
[370460909,1752029446094,-460.0,0.00019452,2]
[370460910,1752029446107,-460.0,0.00019452,2]
[370460911,1752029446122,-882.65,0.00019452,2]
[370460912,1752029446136,-500.0,0.00019452,2]
[370460913,1752029446153,-500.0,0.00019479,2]
[370460914,1752029446171,-1269.27517721,0.00019489,2]
[370460915,1752029446184,-516.28207302,0.00019507,2]
[370460916,1752029446199,-373.4470061,0.00019589,2]
[370460917,1752029446213,-428.6046964,0.00019589,2]
[370460918,1752029446227,-428.6046964,0.00019589,2]
[370460919,1752029446240,-501.14716224,0.00019721,2]
[370460920,1752029446254,-1000.0,0.00019721,2]
[370460921,1752029446267,-1000.0,0.00019721,2]
[370460922,1752029446280,-500.0,0.00019721,2]
[370460923,1752029446292,-503.5289748,0.00019721,2]
[370460924,1752029446304,-815.50837465,0.00019721,2]
[370460925,1752029446318,-595.57927025,0.00019721,2]
[370460926,1752029446330,-491.97369834,0.00019721,2]
[370460927,1752029446343,-1000.0,0.00019721,2]
[370460928,1752029446355,-460.0,0.00019726,2]
[370460929,1752029446368,-460.0,0.00019726,2]
[370460930,1752029446380,-460.0,0.00019726,2]
[370460931,1752029446392,-460.0,0.00019726,2]
[370460932,1752029446405,-460.0,0.00019726,2]
[370460933,1752029446417,-460.0,0.00019726,2]
[370460934,1752029446429,-481.73018947,0.00019726,2]
[370460935,1752029446441,-460.0,0.00019726,2]
[370460936,1752029446453,-407.51219643,0.00019726,2]
[370460937,1752029446465,-460.0,0.00019726,2]
[370460938,1752029446477,-460.0,0.00019726,2]
[370460939,1752029446490,-460.0,0.00019726,2]
[370460940,1752029446502,-559.15231256,0.00019726,2]
[370460941,1752029446515,-472.6222911,0.00019726,2]
[370460942,1752029446527,-460.0,0.00019726,2]
[370460943,1752029446540,-460.0,0.00019726,2]
[370460944,1752029446552,-460.0,0.00019726,2]
[370460945,1752029446564,-460.0,0.00019726,2]
[370460946,1752029446575,-460.0,0.00019726,2]
[370460947,1752029446587,-460.0,0.00019726,2]
[370460948,1752029446599,-460.0,0.00019726,2]
[370460949,1752029446612,-460.0,0.00019726,2]
[370460950,1752029446624,-460.0,0.00019726,2]
[370460951,1752029446638,-460.0,0.00019726,2]
[370460952,1752029446650,-573.72,0.00019726,2]
[370460953,1752029446663,-460.0,0.00019726,2]
[370460954,1752029446674,-460.0,0.00019726,2]
[370460955,1752029446687,-460.0,0.00019726,2]
[370460956,1752029446700,-483.39,0.00019726,2]
[370460957,1752029446712,-460.0,0.00019726,2]
[370460958,1752029446724,-460.0,0.00019726,2]
[370460959,1752029446736,-356.89162962,0.00019726,2]
[370460960,1752029446748,-460.0,0.00019726,2]
[370460961,1752029446760,-460.0,0.00019726,2]
[370460962,1752029446772,-460.0,0.00019726,2]
[370460963,1752029446784,-330.68003145,0.00019726,2]
[370460964,1752029446797,-468.16342656,0.00019726,2]
[370460965,1752029446809,-460.0,0.00019726,2]
[370460966,1752029446822,-460.0,0.00019726,2]
[370460967,1752029446833,-460.0,0.00019726,2]
[370460968,1752029446842,-469.40054788,0.00019726,2]
[370460969,1752029446852,-460.0,0.00019726,2]
[370460970,1752029446862,-237.17240886,0.00019726,2]
[370460971,1752029446872,-460.0,0.00019726,2]
[370460972,1752029446881,-460.0,0.00019726,2]
[370460973,1752029447066,-460.0,0.00019726,2]
[370460974,1752029447099,-466.42792887,0.00019726,2]
[370460975,1752029447110,-466.63479276,0.00019726,2]
[370460976,1752029447120,-460.0,0.00019726,2]
[370460977,1752029447130,-528.82663815,0.00019726,2]
[370460978,1752029447140,-479.03,0.00019726,2]
[370460979,1752029447150,-435.33479534,0.00019726,2]
[370460980,1752029447160,-460.0,0.00019726,2]
[370460981,1752029447174,-460.0,0.00019726,2]
[370460982,1752029447185,-460.0,0.00019726,2]
[370460983,1752029447195,-812.99,0.00019726,2]
[370460984,1752029447207,-558.65274081,0.00019726,2]
[370460985,1752029447218,-3032.81,0.00019726,2]
[370460986,1752029447228,-462.42166744,0.00019726,2]
[370460987,1752029447239,-460.0,0.00019726,2]
[370460988,1752029447250,-460.0,0.00019726,2]
[370460989,1752029447260,-245.33393681,0.00019726,2]
[370460990,1752029447270,-466.63576569,0.00019726,2]
[370460991,1752029447279,-460.0,0.00019726,2]
[370460992,1752029447289,-2302.41,0.00019726,2]
[370460993,1752029447298,-460.0,0.00019726,2]
[370460994,1752029447308,-1488.7,0.00019726,2]
[370460995,1752029447317,-151.0,0.00019726,2]
[370460996,1752029447326,-460.0,0.00019726,2]
[370460997,1752029447337,-460.0,0.00019726,2]
[370460998,1752029447347,-460.0,0.00019726,2]
[370460999,1752029447356,-763.27,0.00019726,2]
[370461000,1752029447367,-460.0,0.00019726,2]
[370461001,1752029447378,-526.62,0.00019726,2]
[370461002,1752029447387,-460.0,0.00019726,2]
[370461003,1752029447397,-460.0,0.00019726,2]
[370461004,1752029447406,-460.0,0.00019726,2]
[370461005,1752029447416,-460.0,0.00019726,2]
[370461006,1752029447425,-460.0,0.00019726,2]
[370461007,1752029447435,-471.0825182,0.00019726,2]
[370461008,1752029447444,-151.306496,0.00019726,2]
[370461009,1752029447453,-686.65,0.00019726,2]
[370461010,1752029447463,-460.0,0.00019726,2]
[370461011,1752029447473,-460.0,0.00019726,2]
[370461012,1752029447482,-460.0,0.00019726,2]
[370461013,1752029447492,-460.0,0.00019726,2]
[370461014,1752029447502,-460.0,0.00019726,2]
[370461015,1752029447512,-364.15080532,0.00019726,2]
[370461016,1752029447521,-460.0,0.00019726,2]
[370461017,1752029447531,-460.0,0.00019726,2]
[370461018,1752029447540,-469.94389054,0.00019726,2]
[370461019,1752029447550,-460.0,0.00019726,2]
[370461020,1752029447560,-1467.71,0.00019726,2]
[370461021,1752029447570,-151.0,0.00019726,2]
[370461022,1752029447580,-460.0,0.00019726,2]
[370461023,1752029447589,-460.0,0.00019726,2]
[370461024,1752029447599,-460.0,0.00019726,2]
[370461025,1752029447609,-460.0,0.00019726,2]
[370461026,1752029447619,-1539.37,0.00019726,2]
[370461027,1752029447629,-460.0,0.00019726,2]
[370461028,1752029447638,-151.0,0.00019726,2]
[370461029,1752029447648,-460.0,0.00019726,2]
[370461030,1752029447657,-890.53,0.00019726,2]
[370461031,1752029447667,-460.0,0.00019726,2]
[370461032,1752029447676,-2130.94,0.00019726,2]
[370461033,1752029447692,-151.986636,0.00019726,2]
[370461034,1752029447702,-460.0,0.00019726,2]
[370461035,1752029447712,-460.0,0.00019726,2]
[370461036,1752029447721,-529.48,0.00019726,2]
[370461037,1752029447731,-460.0,0.00019726,2]
[370461038,1752029447740,-460.0,0.00019726,2]
[370461039,1752029447750,-186.34694371,0.00019726,2]
[370461040,1752029447759,-460.0,0.00019726,2]
[370461041,1752029447769,-460.0,0.00019726,2]
[370461042,1752029447778,-1268.98,0.00019726,2]
[370461043,1752029447788,-460.0,0.00019726,2]
[370461044,1752029447797,-460.0,0.00019726,2]
[370461045,1752029447806,-619.65,0.00019726,2]
[370461046,1752029447816,-460.0,0.00019726,2]
[370461047,1752029447833,-460.0,0.00019726,2]
[370461048,1752029447843,-460.0,0.00019726,2]
[370461049,1752029447852,-2512.11,0.00019726,2]
[370461050,1752029447861,-460.0,0.00019726,2]
[370461051,1752029447871,-682.29,0.00019726,2]
[370461052,1752029447880,-460.0,0.00019726,2]
[370461053,1752029447891,-470.24643165,0.00019726,2]
[370461054,1752029447900,-1065.93,0.00019726,2]
[370461055,1752029447910,-844.89,0.00019726,2]
[370461056,1752029447919,-460.0,0.00019726,2]
[370461057,1752029447929,-495.22,0.00019726,2]
[370461058,1752029447939,-464.80948341,0.00019726,2]
[370461059,1752029447948,-460.0,0.00019726,2]
[370461060,1752029447957,-460.0,0.00019726,2]
[370461061,1752029447967,-460.0,0.00019726,2]
[370461062,1752029447977,-814.16,0.00019726,2]
[370461063,1752029447987,-151.0,0.00019726,2]
[370461064,1752029447997,-246.46944018,0.00019726,2]
[370461065,1752029448006,-460.0,0.00019726,2]
[370461066,1752029448016,-460.0,0.00019726,2]
[370461067,1752029448025,-151.0,0.00019726,2]
[370461068,1752029448034,-460.0,0.00019726,2]
[370461069,1752029448044,-460.0,0.00019726,2]
[370461070,1752029448053,-175.40834771,0.00019726,2]
[370461071,1752029448063,-151.0,0.00019726,2]
[370461072,1752029448074,-460.0,0.00019726,2]
[370461073,1752029448084,-460.0,0.00019726,2]
[370461074,1752029448094,-460.0,0.00019726,2]
[370461075,1752029448104,-772.56,0.00019726,2]
[370461076,1752029448114,-151.0,0.00019726,2]
[370461077,1752029448123,-495.07,0.00019726,2]
[370461078,1752029448133,-460.0,0.00019726,2]
[370461079,1752029448145,-460.0,0.00019726,2]
[370461080,1752029448155,-460.0,0.00019726,2]
[370461081,1752029448168,-804.53,0.00019726,2]
[370461082,1752029448179,-473.73288199,0.00019726,2]
[370461083,1752029448189,-508.66,0.00019726,2]
[370461084,1752029448199,-467.99936835,0.00019726,2]
[370461085,1752029448209,-460.0,0.00019726,2]
[370461086,1752029448219,-460.0,0.00019726,2]
[370461087,1752029448229,-1018.28,0.00019726,2]
[370461088,1752029448239,-460.0,0.00019726,2]
[370461089,1752029448250,-460.0,0.00019726,2]
[370461090,1752029448259,-460.0,0.00019726,2]
[370461091,1752029448269,-460.0,0.00019726,2]
[370461092,1752029448279,-460.0,0.00019726,2]
[370461093,1752029448290,-882.65,0.00019726,2]
[370461094,1752029448300,-238.89519619,0.00019784,2]
[370461095,1752029448309,-500.0,0.00019835,2]
[370461096,1752029448319,-1269.27517721,0.000199,2]
[370461097,1752029448329,-4327.15712283,0.000199,2]
[370461098,1752029448339,-500.0,0.00019973,2]
[370461099,1752029448349,-226.20521233,0.00019973,2]
[370461100,1752029448359,-500.0,0.00019973,2]
[370461101,1752029448368,-500.80920247,0.00019973,2]
[370461102,1752029448378,-150.36452721,0.00019973,2]
[370461103,1752029448389,-152.563038,0.00019973,2]
[370461104,1752029448399,-151.0,0.00019973,2]
[370461105,1752029448408,-151.0,0.00019973,2]
[370461106,1752029448418,-151.0,0.00019973,2]
[370461107,1752029448427,-2829.380721,0.00019973,2]
[370461108,1752029448437,-327.636252,0.00019973,2]
[370461109,1752029448446,-2829.380721,0.00019973,2]
[370461110,1752029448457,-327.636252,0.00019973,2]
[370461111,1752029448466,-100139.0,0.0002,2]
[370461112,1752029448476,-460.0,0.0002,2]
[370461113,1752029448486,-460.0,0.0002,2]
[370461114,1752029448496,-460.0,0.0002,2]
[370461115,1752029448506,-460.0,0.0002,2]
[370461116,1752029448517,-269.95,0.0002,2]
[370461117,1752029448527,-575.04756073,0.0002,2]
[370461118,1752029448537,-460.0,0.0002,2]
[370461119,1752029448547,-460.0,0.0002,2]
[370461120,1752029448557,-277.238445,0.0002,2]
[370461121,1752029448566,-460.0,0.0002,2]
[370461122,1752029448577,-460.0,0.0002,2]
[370461123,1752029448587,-460.0,0.0002,2]
[370461124,1752029448597,-460.0,0.0002,2]
[370461125,1752029448606,-560.79743469,0.0002,2]
[370461126,1752029448616,-563.78977974,0.0002,2]
[370461127,1752029448626,-151.0,0.0002,2]
[370461128,1752029448635,-460.0,0.0002,2]
[370461129,1752029448647,-472.02056297,0.0002,2]
[370461130,1752029448657,-469.89836284,0.0002,2]
[370461131,1752029448667,-573.72,0.0002,2]
[370461132,1752029448678,-151.0,0.0002,2]
[370461133,1752029448688,-460.0,0.0002,2]
[370461134,1752029448698,-460.0,0.0002,2]
[370461135,1752029448709,-460.0,0.0002,2]
[370461136,1752029448719,-483.39,0.0002,2]
[370461137,1752029448729,-460.0,0.0002,2]
[370461138,1752029448739,-460.0,0.0002,2]
[370461139,1752029448748,-460.0,0.0002,2]
[370461140,1752029448758,-460.0,0.0002,2]
[370461141,1752029448768,-460.0,0.0002,2]
[370461142,1752029448778,-460.0,0.0002,2]
[370461143,1752029448793,-470.80325457,0.0002,2]
[370461144,1752029448803,-151.0,0.0002,2]
[370461145,1752029448814,-460.0,0.0002,2]
[370461146,1752029448823,-198.245192,0.0002,2]
[370461147,1752029448833,-198.245192,0.0002,2]
[370461148,1752029448843,-460.0,0.0002,2]
[370461149,1752029448853,-151.0,0.0002,2]
[370461150,1752029448863,-159.439594,0.0002,2]
[370461151,1752029448873,-151.0,0.0002,2]
[370461152,1752029448884,-460.0,0.0002,2]
[370461153,1752029448894,-460.0,0.0002,2]
[370461154,1752029448904,-460.0,0.0002,2]
[370461155,1752029448915,-151.0,0.0002,2]
[370461156,1752029448925,-151.0,0.0002,2]
[370461157,1752029448935,-151.0,0.0002,2]
[370461158,1752029448946,-152.725161,0.0002,2]
[370461159,1752029448957,-460.0,0.0002,2]
[370461160,1752029448966,-200.208506,0.0002,2]
[370461161,1752029448976,-479.03,0.0002,2]
[370461162,1752029448986,-200.208506,0.0002,2]
[370461163,1752029448997,-475.25506201,0.0002,2]
[370461164,1752029449007,-460.0,0.0002,2]
[370461165,1752029449017,-460.0,0.0002,2]
[370461166,1752029449027,-300.0,0.0002,2]
[370461167,1752029449037,-812.99,0.0002,2]
[370461168,1752029449047,-151.315677,0.0002,2]
[370461169,1752029449057,-3032.81,0.0002,2]
[370461170,1752029449067,-460.0,0.0002,2]
[370461171,1752029449077,-151.0,0.0002,2]
[370461172,1752029449087,-257.595622,0.0002,2]
[370461173,1752029449098,-470.27777783,0.0002,2]
[370461174,1752029449108,-151.0,0.0002,2]
[370461175,1752029449119,-257.595622,0.0002,2]
[370461176,1752029449130,-460.0,0.0002,2]